fUSD/lending_fUSD_20250617
["ID","MTS","AMOUNT","RATE_DAILY","PERIOD"]
[366255327,1750164688247,-490.0,0.00016767,2]
[366255328,1750164688258,-1019.07,0.00016767,2]
[366255329,1750164688268,-1459.85,0.00016767,2]
[366255330,1750164688278,-1002.31,0.00016767,2]
[366255331,1750164688288,-490.0,0.00016767,2]
[366255332,1750164688297,-2465.54,0.00016767,2]
[366255333,1750164688307,-490.0,0.00016767,2]
[366255334,1750164688316,-490.0,0.00016767,2]
[366255335,1750164688327,-1541.9,0.00016767,2]
[366255336,1750164688337,-490.0,0.00016767,2]
[366255337,1750164688346,-490.0,0.00016767,2]
[366255338,1750164688356,-490.0,0.00016767,2]
[366255339,1750164688365,-490.0,0.00016767,2]
[366255340,1750164688377,-279.36361421,0.00016767,2]
[366255341,1750164688386,-490.0,0.00016767,2]
[366255342,1750164688396,-490.0,0.00016767,2]
[366255343,1750164688406,-1285.58,0.00016767,2]
[366255344,1750164688415,-490.0,0.00016767,2]
[366255345,1750164688426,-496.95889768,0.00016767,2]
[366255346,1750164688436,-490.0,0.00016767,2]
[366255347,1750164688447,-490.0,0.00016767,2]
[366255348,1750164688457,-2302.59,0.00016767,2]
[366255349,1750164688467,-490.0,0.00016767,2]
[366255350,1750164688477,-490.0,0.00016767,2]
[366255351,1750164688487,-490.0,0.00016767,2]
[366255352,1750164688496,-552.55,0.00016767,2]
[366255353,1750164688506,-490.0,0.00016767,2]
[366255354,1750164688516,-1209.47,0.00016767,2]
[366255355,1750164688525,-324.78920188,0.00016767,2]
[366255356,1750164688535,-1099.79,0.00016767,2]
[366255357,1750164688545,-490.0,0.00016767,2]
[366255358,1750164688555,-490.0,0.00016767,2]
[366255359,1750164688564,-490.0,0.00016767,2]
[366255360,1750164688574,-815.84,0.00016767,2]
[366255361,1750164688583,-1690.85,0.00016767,2]
[366255362,1750164688593,-490.0,0.00016767,2]
[366255363,1750164688603,-490.0,0.00016767,2]
[366255364,1750164688612,-490.0,0.00016767,2]
[366255365,1750164688623,-490.0,0.00016767,2]
[366255366,1750164688632,-490.0,0.00016767,2]
[366255367,1750164688642,-490.0,0.00016767,2]
[366255368,1750164688651,-490.0,0.00016767,2]
[366255369,1750164688667,-490.0,0.00016767,2]
[366255370,1750164688677,-490.0,0.00016767,2]
[366255371,1750164688686,-490.0,0.00016767,2]
[366255372,1750164688696,-490.0,0.00016767,2]
[366255373,1750164688706,-490.0,0.00016767,2]
[366255374,1750164688716,-432.29025833,0.00016767,2]
[366255375,1750164688726,-1609.53,0.00016767,2]
[366255376,1750164688736,-490.0,0.00016767,2]
[366255377,1750164688746,-2309.01,0.00016767,2]
[366255378,1750164688756,-490.0,0.00016767,2]
[366255379,1750164688766,-490.0,0.00016767,2]
[366255380,1750164688777,-490.0,0.00016767,2]
[366255381,1750164688786,-490.0,0.00016767,2]
[366255382,1750164688797,-491.21,0.00016767,2]
[366255383,1750164688807,-490.0,0.00016767,2]
[366255384,1750164688817,-1850.524618,0.00016767,2]
[366255385,1750164688826,-490.0,0.00016767,2]
[366255386,1750164688836,-490.0,0.00016767,2]
[366255387,1750164688845,-490.0,0.00016767,2]
[366255388,1750164688855,-490.0,0.00016767,2]
[366255389,1750164688865,-3025.16,0.00016767,2]
[366255390,1750164688875,-490.0,0.00016767,2]
[366255391,1750164688884,-490.0,0.00016767,2]
[366255392,1750164688894,-490.0,0.00016767,2]
[366255393,1750164688903,-490.0,0.00016767,2]
[366255394,1750164688913,-621.93769077,0.00016767,2]
[366255395,1750164688923,-490.0,0.00016767,2]
[366255396,1750164688933,-1827.87,0.00016767,2]
[366255397,1750164688942,-978.71,0.00016767,2]
[366255398,1750164688952,-490.0,0.00016767,2]
[366255399,1750164688961,-490.0,0.00016767,2]
[366255400,1750164688971,-2376.97,0.00016767,2]
[366255401,1750164688981,-490.0,0.00016767,2]
[366255402,1750164688991,-490.0,0.00016767,2]
[366255403,1750164689000,-665.58,0.00016767,2]
[366255404,1750164689010,-2059.97,0.00016767,2]
[366255405,1750164689019,-507.1805072,0.00016767,2]
[366255406,1750164689029,-490.0,0.00016767,2]
[366255407,1750164689038,-490.0,0.00016767,2]
[366255408,1750164689048,-490.0,0.00016767,2]
[366255409,1750164689058,-490.0,0.00016767,2]
[366255410,1750164689068,-490.34664535,0.00016767,2]
[366255411,1750164689077,-490.0,0.00016767,2]
[366255412,1750164689087,-2092.53,0.00016767,2]
[366255413,1750164689096,-490.0,0.00016767,2]
[366255414,1750164689106,-490.0,0.00016767,2]
[366255415,1750164689116,-5417.93,0.00016767,2]
[366255416,1750164689127,-1763.65,0.00016767,2]
[366255417,1750164689136,-1518.66,0.00016767,2]
[366255418,1750164689146,-490.0,0.00016767,2]
[366255419,1750164689156,-490.0,0.00016767,2]
[366255420,1750164689168,-490.0,0.00016767,2]
[366255421,1750164689180,-947.96,0.00016767,2]
[366255422,1750164689190,-490.0,0.00016767,2]
[366255423,1750164689200,-1099.29,0.00016767,2]
[366255424,1750164689210,-490.0,0.00016767,2]
[366255425,1750164689221,-490.0,0.00016767,2]
[366255426,1750164689230,-490.0,0.00016767,2]
[366255427,1750164689239,-1237.37,0.00016767,2]
[366255428,1750164689250,-490.0,0.00016767,2]
[366255429,1750164689259,-490.0,0.00016767,2]
[366255430,1750164689269,-490.0,0.00016767,2]
[366255431,1750164689279,-490.0,0.00016767,2]
[366255432,1750164689289,-6182.7,0.00016767,2]
[366255433,1750164689298,-492.19,0.00016767,2]
[366255434,1750164689308,-490.0,0.00016767,2]
[366255435,1750164689317,-1065.56,0.00016767,2]
[366255436,1750164689327,-734.6,0.00016767,2]
[366255437,1750164689337,-491.07193339,0.00016767,2]
[366255438,1750164689347,-833.42,0.00016767,2]
[366255439,1750164689357,-300.0,0.00016767,2]
[366255440,1750164689367,-490.0,0.00016767,2]
[366255441,1750164689378,-490.0,0.00016767,2]
[366255442,1750164689388,-7839.6,0.00016767,2]
[366255443,1750164689398,-490.0,0.00016767,2]
[366255444,1750164689408,-490.0,0.00016767,2]
[366255445,1750164689418,-1638.538412,0.00016767,2]
[366255446,1750164689428,-490.0,0.00016767,2]
[366255447,1750164689437,-490.0,0.00016767,2]
[366255448,1750164689447,-556.2,0.00016767,2]
[366255449,1750164689457,-16871.86,0.00016767,2]
[366255450,1750164689466,-490.0,0.00016767,2]
[366255451,1750164689476,-490.0,0.00016767,2]
[366255452,1750164689486,-490.0,0.00016767,2]
[366255453,1750164689497,-2361.36,0.00016767,2]
[366255454,1750164689508,-1710.39,0.00016767,2]
[366255455,1750164689518,-490.0,0.00016767,2]
[366255456,1750164689527,-157.08197,0.00016767,2]
[366255457,1750164689537,-490.0,0.00016767,2]
[366255458,1750164689548,-490.0,0.00016767,2]
[366255459,1750164689557,-5618.96,0.00016767,2]
[366255460,1750164689567,-490.0,0.00016767,2]
[366255461,1750164689577,-440.0,0.00016767,2]
[366255462,1750164689586,-606.69,0.00016767,2]
[366255463,1750164689596,-495.40227159,0.00016767,2]
[366255464,1750164689606,-490.0,0.00016767,2]
[366255465,1750164689616,-1285.51,0.00016767,2]
[366255466,1750164689626,-583.96,0.00016767,2]
[366255467,1750164689636,-490.0,0.00016767,2]
[366255468,1750164689646,-490.0,0.00016767,2]
[366255469,1750164689655,-490.0,0.00016767,2]
[366255470,1750164689665,-490.0,0.00016767,2]
[366255471,1750164689675,-490.0,0.00016767,2]
[366255472,1750164689685,-490.0,0.00016767,2]
[366255473,1750164689694,-894.67,0.00016767,2]
[366255474,1750164689705,-568.94,0.00016767,2]
[366255475,1750164689714,-627.15237812,0.00016767,2]
[366255476,1750164689724,-490.0,0.00016767,2]
[366255477,1750164689734,-371.33020274,0.00016767,2]
[366255478,1750164689744,-490.0,0.00016767,2]
[366255479,1750164689753,-490.0,0.00016767,2]
[366255480,1750164689763,-490.0,0.00016767,2]
[366255481,1750164689772,-490.0,0.00016767,2]
[366255482,1750164689782,-2491.31,0.00016767,2]
[366255483,1750164689791,-490.0,0.00016767,2]
[366255484,1750164689801,-490.0,0.00016767,2]
[366255485,1750164689810,-490.0,0.00016767,2]
[366255486,1750164689819,-523.4,0.00016767,2]
[366255487,1750164689829,-490.0,0.00016767,2]
[366255488,1750164689838,-490.0,0.00016767,2]
[366255489,1750164689847,-490.0,0.00016767,2]
[366255490,1750164689857,-490.0,0.00016767,2]
[366255491,1750164689866,-490.0,0.00016767,2]
[366255492,1750164689877,-541.7,0.00016767,2]
[366255493,1750164689886,-1277.93,0.00016767,2]
[366255494,1750164689895,-490.0,0.00016767,2]
[366255495,1750164689905,-490.0,0.00016767,2]
[366255496,1750164689914,-709.0,0.00016767,2]
[366255497,1750164689924,-1650.05,0.00016767,2]
[366255498,1750164689934,-490.0,0.00016767,2]
[366255499,1750164689943,-490.0,0.00016767,2]
[366255500,1750164689953,-490.0,0.00016767,2]
[366255501,1750164689962,-761.47,0.00016767,2]
[366255502,1750164689973,-490.0,0.00016767,2]
[366255503,1750164689982,-490.0,0.00016767,2]
[366255504,1750164689993,-490.0,0.00016767,2]
[366255505,1750164690003,-462.35419895,0.00016767,2]
[366255506,1750164690012,-490.0,0.00016767,2]
[366255507,1750164690022,-490.0,0.00016767,2]
[366255508,1750164690032,-490.0,0.00016767,2]
[366255509,1750164690043,-490.0,0.00016767,2]
[366255510,1750164690052,-490.0,0.00016767,2]
[366255511,1750164690063,-634.46115659,0.00016767,2]
[366255512,1750164690072,-1193.08,0.00016767,2]
[366255513,1750164690082,-664.73,0.00016767,2]
[366255514,1750164690091,-490.0,0.00016767,2]
[366255515,1750164690101,-2646.76,0.00016767,2]
[366255516,1750164690110,-490.0,0.00016767,2]
[366255517,1750164690119,-490.0,0.00016767,2]
[366255518,1750164690130,-2826.37,0.00016767,2]
[366255519,1750164690139,-490.0,0.00016767,2]
[366255520,1750164690148,-490.0,0.00016767,2]
[366255521,1750164690158,-490.0,0.00016767,2]
[366255522,1750164690168,-490.0,0.00016767,2]
[366255523,1750164690178,-490.0,0.00016767,2]
[366255524,1750164690188,-490.0,0.00016767,2]
[366255525,1750164690198,-490.0,0.00016767,2]
[366255526,1750164690207,-342.70407857,0.00016767,2]
[366255527,1750164690217,-4780.04,0.00016767,2]
[366255528,1750164690226,-490.0,0.00016767,2]
[366255529,1750164690236,-490.0,0.00016767,2]
[366255530,1750164690246,-653.71,0.00016767,2]
[366255531,1750164690256,-490.0,0.00016767,2]
[366255532,1750164690265,-490.0,0.00016767,2]
[366255533,1750164690275,-490.0,0.00016767,2]
[366255534,1750164690285,-1164.36,0.00016767,2]
[366255535,1750164690295,-1477.76,0.00016767,2]
[366255536,1750164690305,-501.58,0.00016767,2]
[366255537,1750164690315,-490.0,0.00016767,2]
[366255538,1750164690324,-490.0,0.00016767,2]
[366255539,1750164690334,-490.0,0.00016767,2]
[366255540,1750164690344,-490.0,0.00016767,2]
[366255541,1750164690354,-490.0,0.00016767,2]
[366255542,1750164690364,-490.0,0.00016767,2]
[366255543,1750164690375,-490.0,0.00016767,2]
[366255544,1750164690384,-623.53,0.00016767,2]
[366255545,1750164690394,-2200.08,0.00016767,2]
[366255546,1750164690404,-490.0,0.00016767,2]
[366255547,1750164690414,-1524.61,0.00016767,2]
[366255548,1750164690425,-434.37874147,0.00016767,2]
[366255549,1750164690435,-490.0,0.00016767,2]
[366255550,1750164690446,-490.0,0.00016767,2]
[366255551,1750164690457,-490.0,0.00016767,2]
[366255552,1750164690466,-2456.65,0.00016767,2]
[366255553,1750164690477,-1238.18,0.00016767,2]
[366255554,1750164690487,-490.0,0.00016767,2]
[366255555,1750164690497,-415.85118261,0.00016767,2]
[366255556,1750164690507,-291.1942922,0.00016767,2]
[366255557,1750164690518,-464.06425427,0.00016767,2]
[366255558,1750164690528,-490.0,0.00016767,2]
[366255559,1750164690539,-927.08,0.00016767,2]
[366255560,1750164690549,-1289.32,0.00016767,2]
[366255561,1750164690559,-490.0,0.00016767,2]
[366255562,1750164690570,-8543.47,0.00016767,2]
[366255563,1750164690580,-490.0,0.00016767,2]
[366255564,1750164690590,-700.04,0.00016767,2]
[366255565,1750164690601,-490.0,0.00016767,2]
[366255566,1750164690611,-490.0,0.00016767,2]
[366255567,1750164690621,-490.0,0.00016767,2]
[366255568,1750164690632,-490.0,0.00016767,2]
[366255569,1750164690643,-490.0,0.00016767,2]
[366255570,1750164690653,-1722.14,0.00016767,2]
[366255571,1750164690663,-492.63,0.00016767,2]
[366255572,1750164690673,-3973.97,0.00016767,2]
[366255573,1750164690683,-395.34130157,0.00016767,2]
[366255574,1750164690694,-490.0,0.00016767,2]
[366255575,1750164690703,-490.0,0.00016767,2]
[366255576,1750164690713,-623.14,0.00016767,2]
[366255577,1750164690724,-490.0,0.00016767,2]
[366255578,1750164690732,-490.0,0.00016767,2]
[366255579,1750164690742,-490.0,0.00016767,2]
[366255580,1750164690752,-1069.77,0.00016767,2]
[366255581,1750164690762,-490.0,0.00016767,2]
[366255582,1750164690772,-490.0,0.00016767,2]
[366255583,1750164690782,-490.0,0.00016767,2]
[366255584,1750164690793,-490.0,0.00016767,2]
[366255585,1750164690804,-490.0,0.00016767,2]
[366255586,1750164690815,-161.11200803,0.00016767,2]
[366255587,1750164690825,-1146.38,0.00016767,2]
[366255588,1750164690835,-490.0,0.00016767,2]
[366255589,1750164690846,-899.89,0.00016767,2]
[366255590,1750164690856,-1240.51,0.00016767,2]
[366255591,1750164690866,-490.0,0.00016767,2]
[366255592,1750164690877,-490.0,0.00016767,2]
[366255593,1750164690888,-1288.48,0.00016767,2]
[366255594,1750164690898,-490.0,0.00016767,2]
[366255595,1750164690908,-490.0,0.00016767,2]
[366255596,1750164690918,-8958.91,0.00016767,2]
[366255597,1750164690929,-490.0,0.00016767,2]
[366255598,1750164690938,-900.12,0.00016767,2]
[366255599,1750164690948,-4666.51,0.00016767,2]
[366255600,1750164690959,-490.0,0.00016767,2]
[366255601,1750164690969,-490.0,0.00016767,2]
[366255602,1750164690979,-490.0,0.00016767,2]
[366255603,1750164690988,-490.0,0.00016767,2]
[366255604,1750164690998,-463.6080084,0.00016767,2]
[366255605,1750164691008,-490.0,0.00016767,2]
[366255606,1750164691018,-490.0,0.00016767,2]
[366255607,1750164691028,-490.0,0.00016767,2]
[366255608,1750164691038,-490.0,0.00016767,2]
[366255609,1750164691048,-1214.19,0.00016767,2]
[366255610,1750164691058,-841.35,0.00016767,2]
[366255611,1750164691068,-490.0,0.00016767,2]
[366255612,1750164691079,-490.0,0.00016767,2]
[366255613,1750164691090,-1696.76,0.00016767,2]
[366255614,1750164691100,-490.0,0.00016767,2]
[366255615,1750164691110,-6403.92,0.00016767,2]
[366255616,1750164691120,-490.0,0.00016767,2]
[366255617,1750164691131,-490.0,0.00016767,2]
[366255618,1750164691142,-5069.31,0.00016767,2]
[366255619,1750164691153,-490.0,0.00016767,2]
[366255620,1750164691163,-490.0,0.00016767,2]
[366255621,1750164691176,-1254.85,0.00016767,2]
[366255622,1750164691187,-1922.55,0.00016767,2]
[366255623,1750164691197,-490.0,0.00016767,2]
[366255624,1750164691208,-490.0,0.00016767,2]
[366255625,1750164691219,-490.0,0.00016767,2]
[366255626,1750164691229,-1131.12,0.00016767,2]
[366255627,1750164691240,-490.0,0.00016767,2]
[366255628,1750164691251,-572.96,0.00016767,2]
[366255629,1750164691261,-490.0,0.00016767,2]
[366255630,1750164691272,-490.0,0.00016767,2]
[366255631,1750164691282,-490.0,0.00016767,2]
[366255632,1750164691293,-622.02,0.00016767,2]
[366255633,1750164691303,-580.06248134,0.00016767,2]
[366255634,1750164691313,-490.0,0.00016767,2]
[366255635,1750164691323,-541.2,0.00016767,2]
[366255636,1750164691334,-490.0,0.00016767,2]
[366255637,1750164691345,-204.48871146,0.00016767,2]
[366255638,1750164691355,-490.0,0.00016767,2]
[366255639,1750164691366,-3565.34,0.00016767,2]
[366255640,1750164691375,-490.0,0.00016767,2]
[366255641,1750164691385,-958.15,0.00016767,2]
[366255642,1750164691396,-490.0,0.00016767,2]
[366255643,1750164691406,-490.0,0.00016767,2]
[366255644,1750164691416,-698.17,0.00016767,2]
[366255645,1750164691427,-490.0,0.00016767,2]
[366255646,1750164691437,-490.0,0.00016767,2]
[366255647,1750164691448,-1641.86,0.00016767,2]
[366255648,1750164691458,-490.67753976,0.00016767,2]
[366255649,1750164691468,-490.0,0.00016767,2]
[366255650,1750164691479,-490.0,0.00016767,2]
[366255651,1750164691489,-490.0,0.00016767,2]
[366255652,1750164691499,-490.0,0.00016767,2]
[366255653,1750164691510,-4754.63,0.00016767,2]
[366255654,1750164691520,-490.0,0.00016767,2]
[366255655,1750164691530,-947.42,0.00016767,2]
[366255656,1750164691541,-490.0,0.00016767,2]
[366255657,1750164691551,-717.05,0.00016767,2]
[366255658,1750164691562,-818.35,0.00016767,2]
[366255659,1750164691572,-503.74932388,0.00016767,2]
[366255660,1750164691583,-490.0,0.00016767,2]
[366255661,1750164691594,-492.86861285,0.00016767,2]
[366255662,1750164691605,-3609.48,0.00016767,2]
[366255663,1750164691615,-490.0,0.00016767,2]
[366255664,1750164691626,-1389.77,0.00016767,2]
[366255665,1750164691637,-2322.63,0.00016767,2]
[366255666,1750164691647,-490.0,0.00016767,2]
[366255667,1750164691658,-1795.91,0.00016767,2]
[366255668,1750164691668,-490.0,0.00016767,2]
[366255669,1750164691678,-490.0,0.00016767,2]
[366255670,1750164691689,-490.0,0.00016767,2]
[366255671,1750164691701,-490.0,0.00016767,2]
[366255672,1750164691711,-676.55,0.00016767,2]
[366255673,1750164691722,-490.0,0.00016767,2]
[366255674,1750164691732,-490.0,0.00016767,2]
[366255675,1750164691743,-490.0,0.00016767,2]
[366255676,1750164691753,-490.0,0.00016767,2]
[366255677,1750164691764,-490.0,0.00016767,2]
[366255678,1750164691773,-490.0,0.00016767,2]
[366255679,1750164691783,-491.75878368,0.00016767,2]
[366255680,1750164691793,-1713.68,0.00016767,2]
[366255681,1750164691803,-490.0,0.00016767,2]
[366255682,1750164691813,-614.87,0.00016767,2]
[366255683,1750164691824,-490.0,0.00016767,2]
[366255684,1750164691834,-536.49,0.00016767,2]
[366255685,1750164691844,-515.18,0.00016767,2]
[366255686,1750164691855,-922.15,0.00016767,2]
[366255687,1750164691866,-490.0,0.00016767,2]
[366255688,1750164691879,-490.0,0.00016767,2]
[366255689,1750164691889,-490.0,0.00016767,2]
[366255690,1750164691900,-836.27,0.00016767,2]
[366255691,1750164691911,-490.0,0.00016767,2]
[366255692,1750164691921,-580.03,0.00016767,2]
[366255693,1750164691931,-490.0,0.00016767,2]
[366255694,1750164691941,-764.25,0.00016767,2]
[366255695,1750164691952,-767.81,0.00016767,2]
[366255696,1750164691963,-6572.71,0.00016767,2]
[366255697,1750164691973,-2988.54,0.00016767,2]
[366255698,1750164691984,-490.0,0.00016767,2]
[366255699,1750164691995,-490.0,0.00016767,2]
[366255700,1750164692005,-490.0,0.00016767,2]
[366255701,1750164692017,-490.0,0.00016767,2]
[366255702,1750164692027,-495.14018756,0.00016767,2]
[366255703,1750164692037,-490.0,0.00016767,2]
[366255704,1750164692048,-571.12325883,0.00016767,2]
[366255705,1750164692058,-490.0,0.00016767,2]
[366255706,1750164692069,-490.0,0.00016767,2]
[366255707,1750164692080,-629.84,0.00016767,2]
[366255708,1750164692090,-355.18532494,0.00016767,2]
[366255709,1750164692100,-2812.68,0.00016767,2]
[366255710,1750164692110,-490.0,0.00016767,2]
[366255711,1750164692121,-490.0,0.00016767,2]
[366255712,1750164692133,-490.0,0.00016767,2]
[366255713,1750164692143,-2984.48,0.00016767,2]
[366255714,1750164692153,-490.0,0.00016767,2]
[366255715,1750164692164,-1481.78,0.00016767,2]
[366255716,1750164692180,-490.0,0.00016767,2]
[366255717,1750164692190,-490.0,0.00016767,2]
[366255718,1750164692200,-673.06,0.00016767,2]
[366255719,1750164692211,-2564.31,0.00016767,2]
[366255720,1750164692221,-490.0,0.00016767,2]
[366255721,1750164692231,-490.0,0.00016767,2]
[366255722,1750164692241,-490.0,0.00016767,2]
[366255723,1750164692251,-857.16,0.00016767,2]
[366255724,1750164692262,-490.0,0.00016767,2]
[366255725,1750164692273,-6525.63,0.00016767,2]
[366255726,1750164692284,-490.0,0.00016767,2]
[366255727,1750164692294,-599.13,0.00016767,2]
[366255728,1750164692305,-13649.84,0.00016767,2]
[366255729,1750164692315,-490.0,0.00016767,2]
[366255730,1750164692325,-490.0,0.00016767,2]
[366255731,1750164692335,-490.0,0.00016767,2]
[366255732,1750164692346,-1032.47,0.00016767,2]
[366255733,1750164692357,-490.0,0.00016767,2]
[366255734,1750164692368,-490.0,0.00016767,2]
[366255735,1750164692380,-490.0,0.00016767,2]
[366255736,1750164692391,-680.82,0.00016767,2]
[366255737,1750164692401,-490.0,0.00016767,2]
[366255738,1750164692412,-490.0,0.00016767,2]
[366255739,1750164692421,-981.43,0.00016767,2]
[366255740,1750164692432,-490.0,0.00016767,2]
[366255741,1750164692442,-5730.1,0.00016767,2]
[366255742,1750164692452,-713.63,0.00016767,2]
[366255743,1750164692462,-490.0,0.00016767,2]
[366255744,1750164692472,-490.0,0.00016767,2]
[366255745,1750164692482,-490.0,0.00016767,2]
[366255746,1750164692492,-680.36,0.00016767,2]
[366255747,1750164692503,-490.0,0.00016767,2]
[366255748,1750164692514,-486.26979241,0.00016767,2]
[366255749,1750164692525,-490.0,0.00016767,2]
[366255750,1750164692536,-490.0,0.00016767,2]
[366255751,1750164692547,-490.0,0.00016767,2]
[366255752,1750164692558,-4433.13,0.00016767,2]
[366255753,1750164692568,-756.93,0.00016767,2]
[366255754,1750164692579,-490.0,0.00016767,2]
[366255755,1750164692590,-490.0,0.00016767,2]
[366255756,1750164692939,-969.14,0.00016767,2]
[366255757,1750164692963,-1533.32,0.00016767,2]
[366255758,1750164692973,-2923.07,0.00016767,2]
[366255759,1750164692984,-490.0,0.00016767,2]
[366255760,1750164692993,-490.0,0.00016767,2]
[366255761,1750164693003,-490.0,0.00016767,2]
[366255762,1750164693014,-818.68,0.00016767,2]
[366255763,1750164693024,-1116.74,0.00016767,2]
[366255764,1750164693035,-490.0,0.00016767,2]
[366255765,1750164693045,-2360.93,0.00016767,2]
[366255766,1750164693056,-220.20194575,0.00016767,2]
[366255767,1750164693066,-490.0,0.00016767,2]
[366255768,1750164693077,-490.0,0.00016767,2]
[366255769,1750164693088,-1777.4,0.00016767,2]
[366255770,1750164693099,-490.0,0.00016767,2]
[366255771,1750164693109,-490.0,0.00016767,2]
[366255772,1750164693120,-490.0,0.00016767,2]
[366255773,1750164693133,-4856.36,0.00016767,2]
[366255774,1750164693143,-619.82,0.00016767,2]
[366255775,1750164693154,-510.66,0.00016767,2]
[366255776,1750164693164,-490.0,0.00016767,2]
[366255777,1750164693180,-1028.02,0.00016767,2]
[366255778,1750164693190,-585.87,0.00016767,2]
[366255779,1750164693199,-490.0,0.00016767,2]
[366255780,1750164693211,-490.0,0.00016767,2]
[366255781,1750164693221,-3108.13,0.00016767,2]
[366255782,1750164693231,-6423.75,0.00016767,2]
[366255783,1750164693242,-602.17,0.00016767,2]
[366255784,1750164693254,-490.0,0.00016767,2]
[366255785,1750164693265,-2298.59,0.00016767,2]
[366255786,1750164693275,-650.83,0.00016767,2]
[366255787,1750164693286,-1192.02,0.00016767,2]
[366255788,1750164693297,-490.0,0.00016767,2]
[366255789,1750164693307,-490.0,0.00016767,2]
[366255790,1750164693317,-490.0,0.00016767,2]
[366255791,1750164693328,-681.33,0.00016767,2]
[366255792,1750164693338,-490.0,0.00016767,2]
[366255793,1750164693350,-588.42,0.00016767,2]
[366255794,1750164693360,-1869.29,0.00016767,2]
[366255795,1750164693371,-405.66006389,0.00016767,2]
[366255796,1750164693382,-490.0,0.00016767,2]
[366255797,1750164693393,-490.0,0.00016767,2]
[366255798,1750164693404,-20628.06,0.00016767,2]
[366255799,1750164693414,-3367.5,0.00016767,2]
[366255800,1750164693425,-18776.46,0.00016767,2]
[366255801,1750164693435,-2842.54,0.00016767,2]
[366255802,1750164693446,-490.0,0.00016767,2]
[366255803,1750164693456,-490.0,0.00016767,2]
[366255804,1750164693467,-490.0,0.00016767,2]
[366255805,1750164693478,-242.96015572,0.00016767,2]
[366255806,1750164693488,-490.0,0.00016767,2]
[366255807,1750164693499,-490.0,0.00016767,2]
[366255808,1750164693509,-490.0,0.00016767,2]
[366255809,1750164693519,-1519.95,0.00016767,2]
[366255810,1750164693543,-1964.7,0.00016767,2]
[366255811,1750164693555,-1024.11,0.00016767,2]
[366255812,1750164693567,-490.0,0.00016767,2]
[366255813,1750164693579,-490.0,0.00016767,2]
[366255814,1750164693590,-4729.85,0.00016767,2]
[366255815,1750164693601,-155.21774203,0.00016769,2]
[366255816,1750164693613,-211.0,0.0001677,2]
[366255817,1750164693625,-200.0,0.0001677,2]
[366255818,1750164693637,-151.0,0.0001677,2]
[366255819,1750164693648,-500.0,0.00016773,2]
[366255820,1750164693659,-500.0,0.00016773,2]
[366255821,1750164693670,-500.0,0.00016773,2]
[366255822,1750164693681,-500.0,0.00016773,2]
[366255823,1750164693691,-500.0,0.00016773,2]
[366255824,1750164693702,-528.44246562,0.00016773,2]
[366255825,1750164693714,-500.0,0.00016773,2]
[366255826,1750164693725,-500.0,0.00016773,2]